bitfinex-derivatives/quotes_ETHF0:USTF0_20251103
["timestamp","ask_amount","ask_price","bid_price","bid_amount"]
[1762180609498,3.2078,3714.9,3714.4,0.2343]
[1762180609698,3.2078,3714.9,3714.5,9.963]
[1762180610402,3.2078,3714.9,3714.6,0.48465]
[1762180610704,3.21012575,3714.9,3714.5,10.44766]
[1762180610901,3.21012575,3714.9,3714.5,9.963]
[1762180611101,0.48464,3714.8,3714.5,9.963]
[1762180611307,0.48464,3714.8,3714.2,0.1366]
[1762180611506,3.69246,3714.5,3714.2,0.1366]
[1762180611700,3.69246,3714.5,3714.3,6.575]
[1762180612305,3.2078,3714.5,3714.4,9.955]
[1762180612602,0.00232575,3714.9,3714.4,10.1893]
[1762180613105,0.00232575,3714.9,3714.4,10.67397]
[1762180613503,0.48693575,3714.9,3714.4,10.1893]
[1762180613694,0.48462,3714.8,3714.4,10.1893]
[1762180614101,0.00232575,3714.9,3714.8,0.2343]
[1762180614295,0.00232575,3714.9,3714.8,0.71892]
[1762180614506,3.69225,3716.2,3715.7,0.2343]
[1762180614800,3.2078,3716.2,3715.6,0.1366]
[1762180615000,0.48449,3715.8,3715.7,9.947]
[1762180615202,0.48448,3716.0,3715.7,9.947]
[1762180615400,3.2078,3716.2,3715.7,9.947]
[1762180615597,0.48449,3715.9,3715.7,9.947]
[1762180615907,0.48451,3715.7,3715.1,3.69239]
[1762180616107,0.48453,3715.5,3715.1,3.2078]
[1762180616307,0.48453,3715.5,3715.2,9.942]
[1762180616606,0.48453,3715.5,3715.1,3.2078]
[1762180616607,0.48452,3715.6,3715.3,9.942]
[1762180616807,0.48454,3715.4,3715.1,3.2078]
[1762180617001,1.21117,3716.0,3715.2,9.939]
[1762180617206,3.20974042,3716.2,3715.2,10.42357]
[1762180617404,1.21114,3716.1,3715.2,9.939]
[1762180617902,0.48452,3715.6,3715.2,9.939]
[1762180618105,4.42088042,3716.2,3715.2,9.939]
[1762180618306,0.48455,3715.4,3715.2,9.939]
[1762180618504,4.41914,3715.5,3714.9,0.1366]
[1762180618706,0.48458,3715.2,3715.0,9.938]
[1762180618906,4.41914,3715.5,3714.9,0.1366]
[1762180619109,0.48458,3715.2,3715.0,5.757]
[1762180619307,0.48457,3715.2,3715.1,0.2343]
[1762180619504,3.2078,3715.5,3715.0,5.757]
[1762180619505,0.48459,3715.1,3715.0,5.757]
[1762180619811,3.2078,3715.1,3714.9,9.926]
[1762180620003,0.48461,3715.0,3714.9,9.926]
[1762180620311,0.48461,3714.9,3714.3,0.48469]
[1762180620613,3.2078,3715.1,3714.2,0.6213]
[1762180620816,3.2078,3715.1,3714.3,9.928]
[1762180621117,3.2078,3714.6,3714.4,9.924]
[1762180621309,3.2078,3715.0,3714.5,0.2343]
[1762180621611,0.48462,3714.9,3714.5,0.2343]
[1762180621808,3.6924,3715.0,3714.5,0.2343]
[1762180622002,3.6924,3715.0,3714.9,0.1366]
[1762180622003,3.2078,3715.0,3714.9,0.1366]
[1762180622213,3.2078,3715.4,3714.9,0.62121]
[1762180622413,0.4845,3715.7,3715.1,0.48458]
[1762180622711,3.2078,3715.8,3715.2,9.925]
[1762180622917,3.2078,3715.8,3715.6,0.1366]
[1762180623610,3.2078,3715.8,3715.7,0.2343]
[1762180623914,3.69229,3715.8,3715.7,0.2343]
[1762180624113,0.4845,3715.7,3715.6,0.1366]
[1762180624313,3.69229,3715.8,3715.6,9.927]
[1762180624618,3.69229,3715.8,3714.9,0.1366]
[1762180624619,1.21127,3715.7,3714.9,0.1366]
[1762180624819,3.2078,3715.8,3715.7,0.2343]
[1762180625014,3.2078,3715.8,3715.7,10.1583]
[1762180625315,3.20974042,3716.2,3715.7,10.1583]
[1762180625714,3.20974042,3716.2,3716.1,0.71875]
[1762180625908,3.20974042,3716.2,3716.1,0.72179066]
[1762180626109,0.00194042,3716.2,3716.1,0.72179066]
[1762180626307,0.00194042,3716.2,3716.1,0.23734066]
[1762180628011,0.00194042,3716.2,3716.1,10.16034066]
[1762180628614,0.48454,3715.5,3714.9,0.1366]
[1762180628808,0.00194042,3716.2,3715.6,0.1366]
[1762180628809,3.2078,3715.7,3715.6,0.1366]
[1762180629013,3.2078,3715.7,3715.6,10.2819]
[1762180629220,3.20974042,3716.2,3716.1,0.2343]
[1762180629718,3.20974042,3716.2,3716.1,0.23632748]
[1762180630013,3.69418042,3716.2,3716.1,0.00202748]
[1762180630212,3.20974042,3716.2,3716.1,9.91102748]
[1762180630820,3.20974042,3716.2,3716.1,10.14432748]
[1762180631416,3.2078,3717.0,3716.9,0.2343]
[1762180631611,3.2078,3717.0,3716.9,10.1373]
[1762180631911,3.2078,3717.5,3717.0,0.1366]
[1762180632120,0.48429,3717.4,3717.0,0.1366]
[1762180632309,3.2078,3717.5,3717.0,0.62093]
[1762180632511,3.2078,3717.5,3717.4,0.2343]
[1762180632720,3.2078,3717.9,3717.8,0.2343]
[1762180632918,0.00269115,3717.9,3717.8,10.1333]
[1762180634218,0.00269115,3717.9,3717.8,0.2343]
[1762180634519,3.21049115,3717.9,3717.0,0.1366]
[1762180634720,3.21049115,3717.9,3717.1,9.896]
[1762180636014,3.21049115,3717.9,3717.7,0.1419]
[1762180636215,3.21049115,3717.9,3717.8,9.899]
[1762180636411,3.21049115,3717.9,3717.8,10.1303]
[1762180637122,0.00269115,3717.9,3717.8,10.1303]
[1762180637517,0.00269115,3717.9,3717.7,0.1419]
[1762180637717,3.21049115,3717.9,3717.7,9.887]
[1762180638621,3.21049115,3717.9,3717.7,10.0289]
[1762180638921,0.2217,3717.8,3717.0,0.1366]
[1762180639115,3.2078,3717.1,3716.5,3.2078]
[1762180639318,3.2078,3717.1,3716.6,9.887]
[1762180640017,0.00269115,3717.9,3717.4,0.2313]
[1762180640018,3.2078,3717.5,3717.4,0.2313]
[1762180640321,3.2078,3717.8,3717.7,0.1419]
[1762180641120,3.2078,3717.8,3717.7,0.3732]
[1762180642025,3.69203,3717.8,3717.7,9.882]
[1762180642219,0.48431,3717.3,3717.0,0.1419]
[1762180642414,0.00269115,3717.9,3717.1,9.882]
[1762180642415,3.2078,3717.4,3717.1,9.882]
[1762180642614,3.2078,3717.4,3717.3,0.2313]
[1762180642815,3.69209,3717.4,3717.3,0.2313]
[1762180643020,3.2078,3717.4,3716.4,3.2078]
[1762180643326,3.2078,3716.9,3716.5,9.882]
[1762180643920,3.2078,3716.9,3716.5,10.3664]
[1762180644221,3.2078,3717.6,3716.8,3.2078]
[1762180644421,3.2078,3717.6,3717.5,0.71557]
[1762180644623,0.00269115,3717.9,3717.6,0.48426]
[1762180644828,0.00269115,3717.9,3717.7,0.48424]
[1762180645131,0.00269115,3717.9,3717.8,0.2313]
[1762180645420,0.00269115,3717.9,3717.8,0.71553]
[1762180645621,3.2078,3719.0,3718.3,0.48416]
[1762180645822,3.2078,3719.0,3718.4,10.36315]
[1762180646024,0.025,3719.7,3718.9,0.48409]
[1762180646025,3.2078,3719.4,3718.9,0.48409]
[1762180646325,0.025,3719.7,3719.0,9.879]
[1762180646529,0.025,3719.7,3719.0,10.36308]
[1762180646725,0.02746468,3719.7,3719.0,9.88129628]
[1762180647120,0.02746468,3719.7,3719.6,0.2312]
[1762180647324,0.02746468,3719.7,3719.6,10.1052]
[1762180647825,0.02746468,3719.7,3719.6,9.875]
[1762180648121,0.1305,3719.1,3719.0,0.00229628]
[1762180648328,0.1305,3719.1,3719.0,9.87529628]
[1762180648726,0.1305,3719.1,3719.0,0.00229628]
[1762180649034,0.3642,3719.1,3719.0,4.05129628]
[1762180649230,3.2078,3719.2,3719.0,4.05129628]
[1762180649734,3.2078,3719.2,3719.1,9.873]
[1762180650423,3.2078,3719.6,3719.1,10.35706]
[1762180650624,3.2078,3719.6,3719.1,9.873]
[1762180650824,3.2078,3719.6,3719.5,0.2312]
[1762180651024,0.02746468,3719.7,3719.6,0.2312]
[1762180651828,0.02746468,3719.7,3719.2,3.2078]
[1762180652028,0.02746468,3719.7,3719.6,0.2312]
[1762180652533,3.2078,3720.4,3719.6,0.2312]
[1762180652731,3.2078,3720.9,3720.4,0.48389]
[1762180652932,3.69163,3720.9,3720.5,9.86]
[1762180653230,3.2078,3720.9,3720.5,9.86]
[1762180653437,3.2078,3721.3,3720.8,0.2312]
[1762180653636,3.21061476,3721.3,3720.8,0.2312]
[1762180654430,0.00281476,3721.3,3721.2,0.2312]
[1762180654630,0.00281476,3721.3,3721.2,10.0882]
[1762180654835,0.00281476,3721.3,3721.2,20.0144]
[1762180655034,0.00281476,3721.3,3721.2,20.151]
[1762180655535,0.00281476,3721.3,3720.4,1.20972]
[1762180655536,0.2337,3721.3,3720.8,1.43524875]
[1762180655840,0.48384,3720.9,3720.7,9.857]
[1762180656133,0.48382,3721.0,3720.8,9.914]
[1762180656333,3.2078,3721.1,3720.9,9.912]
[1762180656527,3.21005289,3721.1,3721.0,9.912]
[1762180657536,3.2078,3721.7,3721.0,10.1432]
[1762180657835,3.2078,3722.1,3721.1,3.2078]
[1762180658037,3.69148,3722.1,3721.3,0.48377]
[1762180658232,0.48369,3722.0,3721.1,3.2078]
[1762180658430,0.48373,3721.8,3721.1,3.2078]
[1762180658638,3.2078,3721.6,3720.6,3.2078]
[1762180658838,3.2078,3721.6,3720.7,9.907]
[1762180659030,0.48376,3721.5,3720.7,10.39085]
[1762180659229,3.69161,3721.2,3720.6,3.2078]
[1762180659430,3.69161,3721.2,3720.8,9.901]
[1762180659834,0.48382,3721.1,3720.6,3.2078]
[1762180660037,3.3383,3721.2,3720.2,3.2078]
[1762180660237,0.48384,3720.9,3720.2,3.2078]
[1762180660438,0.48384,3720.9,3720.3,9.899]
[1762180660835,0.48385,3720.8,3720.3,9.899]
[1762180661244,0.48389,3720.5,3720.4,9.898]
[1762180661435,0.48387,3720.7,3720.4,9.898]
[1762180661630,4.54782,3721.2,3719.8,0.1342]
[1762180661631,3.3383,3720.5,3719.8,3.2078]
[1762180661836,3.3383,3720.5,3719.9,9.895]
[1762180662638,3.3383,3720.5,3720.0,9.89]
[1762180662832,3.3383,3720.5,3719.4,3.2078]
[1762180663034,0.48396,3720.0,3719.5,4.64]
[1762180663244,3.3383,3720.5,3719.5,4.64]
[1762180663435,0.48395,3720.0,3719.5,4.64]
[1762180663634,0.48398,3719.8,3719.6,9.889]
[1762180663948,0.3642,3719.8,3719.7,9.888]
[1762180664242,0.84818,3719.8,3719.7,9.888]
[1762180664638,0.48403,3719.4,3719.0,3.21009628]
[1762180664840,3.2078,3720.1,3719.6,0.484]
[1762180665148,0.61439,3720.5,3719.8,0.48396]
[1762180665342,0.61439,3720.5,3719.9,0.48396]
[1762180665654,0.1305,3720.5,3719.4,3.2078]
[1762180665844,3.2078,3720.2,3719.4,3.2078]
[1762180666054,3.2078,3720.2,3719.5,9.885]
[1762180666240,3.2078,3720.2,3719.6,0.484]
[1762180666544,3.2078,3720.2,3719.5,9.885]
[1762180666744,3.2078,3720.2,3719.1,0.48406]
[1762180666946,3.2078,3720.2,3719.3,0.48404]
[1762180667137,3.2078,3720.2,3719.0,3.21009628]
[1762180667334,3.3459,3719.8,3719.1,9.879]
[1762180667534,3.3459,3719.8,3719.2,9.884]
[1762180667744,3.3459,3719.8,3719.3,9.881]
[1762180668640,0.3556,3719.1,3719.0,0.00229628]
[1762180668837,0.35757686,3719.1,3719.0,9.87929628]
[1762180669035,0.14007686,3719.1,3719.0,9.87929628]
[1762180669444,0.35757686,3719.1,3719.0,0.00229628]
[1762180669637,0.6267837,3719.1,3719.0,0.00229628]
[1762180669836,0.2175,3718.7,3717.7,3.2078]
[1762180670042,0.1381,3718.4,3717.8,9.882]
[1762180670247,3.2078,3718.1,3717.8,9.882]
[1762180670441,3.2078,3718.1,3717.9,9.882]
[1762180670948,0.2175,3718.0,3717.9,0.00215523]
[1762180671446,0.2175,3718.0,3717.9,9.88015523]
[1762180672247,3.2078,3718.1,3717.9,9.87515523]
[1762180672550,3.2078,3718.1,3717.9,10.35937523]
[1762180672842,0.1381,3718.4,3717.9,10.35937523]
[1762180673150,3.2078,3718.6,3718.0,0.4842]
[1762180673347,3.2078,3718.6,3718.1,0.48419]
[1762180673949,3.2078,3718.2,3717.9,9.87515523]
[1762180674147,0.48418,3718.2,3717.9,0.48637523]
[1762180674334,3.2078,3718.6,3717.9,0.48637523]
[1762180674335,3.2078,3718.6,3718.0,10.36021]
[1762180674540,3.2078,3718.6,3718.0,9.876]
[1762180674842,0.48418,3718.2,3718.1,9.87]
[1762180675042,0.48418,3718.2,3717.9,0.00215523]
[1762180675043,0.4842,3718.1,3717.9,0.00215523]
[1762180675342,0.48419,3718.2,3718.0,9.87]
[1762180675538,0.48418,3718.3,3718.0,9.87]
[1762180675744,0.1381,3718.4,3718.0,9.87]
[1762180675938,0.70171,3718.0,3717.9,0.00215523]
[1762180678654,0.70176,3717.6,3717.5,0.01532397]
[1762180678943,3.2078,3717.6,3716.4,0.48442]
[1762180679145,0.1381,3717.0,3716.5,2.497]
[1762180679545,0.1381,3717.0,3716.5,2.50012291]
[1762180680054,3.2078,3717.1,3716.6,1.21099]
[1762180680256,3.2078,3717.1,3717.0,0.48434]
[1762180680457,0.1381,3717.0,3716.5,2.50012291]
[1762180681150,3.4253,3716.6,3716.5,0.00312291]
[1762180681452,3.4253,3716.6,3715.4,3.2078]
[1762180681749,3.2078,3716.0,3715.5,9.863]
[1762180681940,0.1381,3716.3,3715.5,10.34753]
[1762180682345,0.1381,3716.3,3715.7,0.48451]
[1762180682545,0.14063516,3716.3,3715.5,9.86622279]
[1762180682946,0.14063516,3716.3,3716.0,0.48446]
[1762180683346,0.00253516,3716.3,3716.2,0.48444]
[1762180683546,0.00253516,3716.3,3716.2,0.71564]
[1762180683843,0.14063516,3716.3,3715.5,0.00322279]
[1762180684153,3.5634,3715.6,3714.7,0.02692044]
[1762180684447,3.2078,3715.5,3714.7,0.02692044]
[1762180684650,3.2078,3715.9,3715.2,0.48457]
[1762180684843,3.2078,3715.9,3715.2,9.869]
[1762180685043,3.2078,3715.9,3715.2,10.35573963]
[1762180685243,3.2078,3715.9,3715.4,0.48455]
[1762180685445,3.2078,3715.9,3715.2,9.87116963]
[1762180685944,3.2078,3715.3,3715.2,9.87116963]
[1762180686141,3.4253,3715.3,3715.2,0.00216963]
[1762180686351,3.2078,3715.7,3715.4,0.48454]
[1762180686545,3.2078,3716.2,3715.5,9.873]
[1762180686845,0.00253516,3716.3,3716.1,0.48446]
[1762180687046,0.00253516,3716.3,3716.2,9.877]
[1762180687246,0.00253516,3716.3,3716.2,10.1082]
[1762180687647,0.00253516,3716.3,3716.2,13.316]
[1762180688242,3.2078,3718.1,3717.0,0.2312]
[1762180688448,3.2078,3718.1,3717.1,13.0848]
[1762180688647,0.1381,3718.4,3717.5,3.2078]
[1762180689153,0.14125304,3718.4,3718.0,0.4842]
[1762180689350,0.00315304,3718.4,3718.3,3.2078]
[1762180689543,3.2078,3719.4,3718.7,0.48411]
[1762180689747,3.2078,3719.4,3718.8,10.3621]
[1762180690258,3.3459,3719.8,3719.1,3.2078]
[1762180690455,3.3459,3719.8,3719.2,0.48404]
[1762180690646,0.48401,3719.6,3719.3,9.883]
[1762180690845,3.83316337,3719.8,3719.4,9.883]
[1762180691254,3.34918337,3719.8,3719.4,9.883]
[1762180691650,0.14138337,3719.8,3719.4,9.883]
[1762180691857,0.00328337,3719.8,3719.5,0.484]
[1762180692054,0.00328337,3719.8,3719.6,0.48399]
[1762180692354,0.00328337,3719.8,3719.7,9.878]
[1762180692756,3.21108337,3719.8,3719.7,9.878]
[1762180692951,0.00328337,3719.8,3719.7,10.36199]
[1762180693351,0.00328337,3719.8,3719.7,9.878]
[1762180693957,3.2078,3720.6,3719.7,16.5988]
[1762180694152,3.2078,3720.6,3719.7,9.878]
[1762180694347,3.2078,3720.6,3719.6,3.2078]
[1762180694555,3.2078,3720.6,3719.7,3.56098]
[1762180694757,3.2078,3720.6,3719.9,0.48396]
[1762180694948,3.21108234,3720.6,3719.7,3.077]
[1762180695149,3.21108234,3720.6,3720.1,0.48394]
[1762180695458,3.21108234,3720.6,3720.2,0.48391]
[1762180695752,0.00328234,3720.6,3720.3,9.874]
[1762180695947,0.00328234,3720.6,3720.5,0.2219]
[1762180696949,0.48716234,3720.6,3720.0,3.2078]
[1762180697251,0.00328234,3720.6,3720.1,9.865]
[1762180698256,0.00328234,3720.6,3720.4,0.48389]
[1762180698558,0.00328234,3720.6,3720.5,0.2219]
[1762180700657,3.2078,3721.5,3721.2,0.48379]
[1762180700857,3.2078,3721.5,3721.3,9.849]
[1762180701356,3.2078,3721.5,3721.3,10.33278]
[1762180701755,0.71067,3721.4,3721.3,0.00248881]
[1762180701955,0.71067,3721.4,3721.3,9.84948881]
[1762180702154,3.21013401,3721.5,3721.3,9.84948881]
[1762180702364,0.00233401,3721.5,3721.3,9.84948881]
[1762180702558,0.00233401,3721.5,3721.3,0.00248881]
[1762180702559,0.2269,3721.4,3721.3,0.00248881]
[1762180702860,0.2269,3721.4,3721.3,9.85148881]
[1762180703161,3.69389401,3721.5,3721.3,9.85148881]
[1762180703853,3.21013401,3721.5,3721.3,9.85148881]
[1762180704053,0.00233401,3721.5,3721.4,0.2219]
[1762180704253,3.2078,3722.1,3722.0,0.70559]
[1762180704448,3.2078,3722.5,3722.4,0.2219]
[1762180704650,3.2078,3722.9,3722.4,0.70553]
[1762180704853,3.2078,3722.9,3722.2,3.2078]
[1762180704854,3.2078,3722.9,3722.3,0.48364]
[1762180705049,3.2078,3722.9,3722.0,0.48368]
[1762180705050,0.48361,3722.7,3722.0,0.48368]
[1762180705251,0.00231388,3722.7,3722.1,4.36]
[1762180705451,3.2078,3722.4,3721.5,40.8]
[1762180705651,0.48368,3722.1,3721.6,3.2078]
[1762180705858,0.48369,3722.0,3721.6,3.2078]
[1762180706053,0.48367,3722.2,3721.7,4.157]
[1762180706256,3.2078,3722.0,3721.3,0.00248881]
[1762180706454,0.48376,3721.5,3721.3,0.00248881]
[1762180706651,0.48376,3721.5,3721.4,9.843]
[1762180707868,0.48376,3721.5,3721.4,9.838]
[1762180708156,0.71066,3721.5,3721.4,9.838]
[1762180708356,0.1305,3721.9,3721.4,9.838]
[1762180708754,3.2078,3722.0,3721.4,9.838]
[1762180708955,3.2078,3722.0,3721.9,0.2303]
[1762180709160,3.2078,3722.5,3722.2,0.48365]
[1762180709359,3.2078,3722.5,3722.3,10.32065]
[1762180709559,0.00231388,3722.7,3722.4,9.837]
[1762180710758,0.00231388,3722.7,3722.5,0.48362]
[1762180710954,0.00231388,3722.7,3722.6,0.2303]
[1762180711461,0.00231388,3722.7,3722.6,9.83]
[1762180711957,0.00231388,3722.7,3722.1,3.2078]
[1762180712159,3.21011388,3722.7,3722.1,3.2078]
[1762180712364,0.00231388,3722.7,3722.6,0.2303]
[1762180712562,0.1392,3722.6,3722.1,3.2078]
[1762180712865,0.1392,3722.6,3722.2,9.825]
[1762180713464,0.00231388,3722.7,3722.3,0.48365]
[1762180713768,0.00231388,3722.7,3722.4,5.352]
[1762180714066,0.00231388,3722.7,3722.4,5.83563]
[1762180714262,0.00231388,3722.7,3722.5,0.48362]
[1762180714464,0.00231388,3722.7,3722.6,0.2303]
[1762180714664,0.00231388,3722.7,3722.1,3.2078]
[1762180714856,0.00231388,3722.7,3722.3,0.48365]
[1762180715061,0.00231388,3722.7,3722.1,3.2078]
[1762180715367,0.00231388,3722.7,3722.2,9.817]
[1762180715971,0.00231388,3722.7,3722.1,3.2078]
[1762180716170,0.00231388,3722.7,3722.3,0.48365]
[1762180716565,0.00231388,3722.7,3722.2,9.817]
[1762180716764,0.48592388,3722.7,3722.2,10.30066]
[1762180716966,3.69372388,3722.7,3722.2,9.817]
[1762180717169,3.21011388,3722.7,3722.1,3.2078]
[1762180717367,0.48365,3722.3,3722.1,3.2078]
[1762180717567,0.71005,3722.3,3722.1,3.2078]
[1762180717870,3.2078,3722.2,3721.3,0.00248881]
[1762180718074,0.1392,3721.9,3721.4,9.817]
[1762180718561,0.1392,3721.9,3721.5,9.817]
[1762180718767,0.3656,3721.2,3720.6,3.2078]
[1762180718968,0.3656,3721.2,3720.7,9.819]
[1762180719167,3.2078,3721.7,3720.7,9.819]
[1762180719370,3.2078,3721.7,3721.4,0.48376]
[1762180719564,0.1392,3721.9,3721.5,10.31376]
[1762180719773,0.27498867,3721.8,3721.5,9.83238214]
[1762180719977,0.1392,3721.9,3721.5,9.83238214]
[1762180720382,0.2264,3721.7,3721.6,9.83]
[1762180720672,0.50138938,3721.7,3721.5,9.83038214]
[1762180720874,0.27498938,3721.6,3721.5,9.83038214]
[1762180721074,0.2264,3721.6,3721.5,0.00238214]
[1762180721268,0.27498938,3721.6,3721.5,9.83038214]
[1762180721669,0.2264,3721.6,3721.5,9.83038214]
[1762180721870,0.2264,3721.6,3721.5,9.83538214]
[1762180722071,0.50138938,3721.6,3721.5,0.00238214]
[1762180723379,0.27498938,3721.6,3721.5,0.00238214]
[1762180723677,0.27558009,3721.6,3721.5,0.23268214]
[1762180723875,3.2078,3722.2,3721.8,0.48371]
[1762180724073,0.27558022,3722.1,3722.0,0.48369]
[1762180724273,0.27558022,3722.1,3722.0,10.12369]
[1762180724778,3.21011388,3722.7,3722.6,0.48361]
[1762180725077,3.48767155,3722.7,3722.6,10.53871]
[1762180725478,3.48767155,3722.7,3722.6,10.0551]
[1762180725885,0.27987155,3722.7,3722.6,10.0551]
[1762180726182,0.00231388,3722.7,3722.6,10.0551]
[1762180726684,3.2078,3724.4,3724.2,0.4834]
[1762180726875,0.025,3724.7,3724.6,0.2181]
[1762180727187,3.2078,3725.3,3725.2,0.2181]
[1762180727375,3.2078,3725.3,3724.6,9.855]
[1762180727376,3.48514822,3725.3,3724.5,40.8]
[1762180727682,0.2325,3724.6,3724.5,0.00299749]
[1762180727988,0.76070822,3724.6,3724.3,2.216]
[1762180728181,3.3435,3724.8,3724.3,2.216]
[1762180728182,3.69119,3724.4,3724.3,2.216]
[1762180728381,3.48514822,3724.4,3724.3,2.216]
[1762180728776,0.27734822,3724.4,3724.3,2.216]
[1762180728988,0.27734822,3724.4,3724.3,2.21940788]
[1762180729380,0.27734822,3724.4,3724.3,0.00340788]
[1762180729887,8.27734822,3724.4,3724.3,0.00340788]
[1762180730587,0.27734822,3724.4,3724.3,0.00340788]
[1762180730977,0.50984822,3724.4,3724.3,0.00340788]
[1762180731181,1.1394789,3724.4,3724.3,0.00340788]
[1762180732982,0.9069789,3724.4,3724.3,0.00340788]
[1762180733176,0.27734822,3724.4,3724.3,0.00340788]
[1762180733382,0.00305381,3725.3,3724.3,3.21120788]
[1762180733383,3.21085381,3725.3,3724.3,3.21120788]
[1762180733583,0.27665793,3725.2,3724.7,0.48334]
[1762180733789,0.27665793,3725.1,3724.8,7.05533]
[1762180734088,3.21085381,3725.3,3724.8,6.572]
[1762180734089,0.27665793,3725.0,3724.8,6.572]
[1762180734282,0.27665793,3724.9,3724.7,9.844]
[1762180734481,0.27665793,3724.8,3724.7,9.844]
[1762180734686,0.27665793,3724.8,3724.7,9.841]
[1762180734885,0.00305381,3725.3,3725.1,0.48329]
[1762180735087,0.1357,3726.1,3725.4,0.48325]
[1762180735288,0.1357,3725.4,3725.2,44.0078]
[1762180735585,0.1357,3725.4,3725.3,9.846]
[1762180736185,0.13868843,3725.4,3725.3,9.846]
[1762180737185,0.13868843,3725.4,3725.3,9.844]
[1762180737487,0.62194843,3725.4,3725.3,9.842]
[1762180737894,0.13868843,3725.4,3725.3,9.842]
[1762180739191,0.37118843,3725.4,3725.3,9.842]
[1762180739395,0.13868843,3725.4,3725.3,9.842]
[1762180740188,0.13868843,3725.4,3724.8,3.2078]
[1762180740494,0.2325,3724.9,3724.8,3.2078]
[1762180740688,0.2325,3724.9,3724.8,7.0618]
[1762180741093,0.48332,3725.0,3724.8,7.0618]
[1762180741699,0.48332,3725.0,3724.3,0.00340788]
[1762180741700,0.61905,3724.7,3724.4,3.2078]
[1762180741902,0.48338,3724.5,3724.3,0.00340788]
[1762180742201,3.3435,3724.7,3724.3,0.00340788]
[1762180742393,0.1357,3724.7,3724.5,0.48337]
[1762180742894,0.13868843,3725.4,3725.3,0.48327]
[1762180743096,0.13868843,3725.4,3725.3,10.31027]
[1762180743698,0.1357,3726.1,3726.0,0.48318]
[1762180743895,0.1357,3726.1,3726.0,10.31018]
[1762180744089,3.2078,3726.9,3726.0,11.03495]
[1762180744294,0.61878,3726.8,3726.1,3.2078]
[1762180744493,0.1357,3726.8,3726.5,3.2078]
[1762180744698,0.1357,3726.8,3726.6,9.826]
[1762180744894,0.1357,3726.8,3726.1,40.8]
[1762180744895,0.48309,3726.7,3726.1,44.0078]
[1762180745095,3.2078,3726.4,3725.6,3.2078]
[1762180745292,0.1357,3726.1,3725.7,9.824]
[1762180745494,0.1357,3726.1,3725.6,3.2078]
[1762180745699,0.1357,3725.4,3725.2,3.2078]
[1762180745892,0.1357,3725.4,3725.3,9.825]
[1762180746792,0.1357,3726.1,3725.9,0.48318]
[1762180746998,0.1357,3726.1,3726.0,9.826]
[1762180747401,0.13820853,3726.8,3726.0,11.03395]
[1762180747696,0.13820853,3726.8,3726.3,3.2078]
[1762180747888,0.13820853,3726.8,3726.5,0.48311]
[1762180748095,0.13820853,3726.8,3726.6,9.824]
[1762180748594,0.13820853,3726.8,3725.0,2.62977656]
[1762180748595,0.1357,3726.1,3725.9,3.2078]
[1762180748800,0.1357,3726.1,3726.0,3.047]
[1762180750598,0.1357,3726.1,3726.0,9.818]
[1762180752606,0.1357,3726.1,3726.0,10.30118]
[1762180752806,0.1357,3726.1,3725.9,3.2078]
[1762180752998,0.1357,3726.1,3726.0,9.812]
[1762180753195,0.1357,3726.1,3726.0,10.29518]
[1762180753400,0.1357,3726.1,3726.0,9.812]
[1762180754004,0.1357,3726.1,3726.0,10.29518]
[1762180754405,0.1357,3726.1,3726.0,9.812]
[1762180754709,0.1357,3726.1,3726.0,10.29518]
[1762180755994,0.13820853,3726.8,3726.7,0.48309]
[1762180756205,0.13820853,3726.8,3726.7,13.49289]
[1762180756403,0.1357,3727.5,3727.4,0.483]
[1762180756596,0.1357,3727.5,3727.4,9.801]
[1762180756801,0.1357,3727.5,3727.4,10.284]
[1762180757298,0.13801651,3727.5,3727.4,9.80304974]
[1762180757705,0.13801651,3727.5,3727.4,0.00204974]
[1762180757904,0.13801651,3727.5,3727.4,5.58104974]
[1762180758709,0.1357,3728.2,3728.1,0.48291]
[1762180759005,0.1357,3728.2,3728.1,9.793]
[1762180759201,0.1434,3727.5,3727.4,0.00204974]
[1762180759403,0.1434,3727.5,3727.4,9.79404974]
[1762180759604,0.14662344,3727.5,3727.4,9.79504974]
[1762180760105,0.14662344,3727.5,3727.4,9.79604974]
[1762180760302,0.14662344,3727.5,3727.4,10.27904974]
[1762180760605,0.14662344,3727.5,3727.4,9.79304974]
[1762180760907,0.1434,3726.1,3725.9,9.789]
[1762180761101,0.1434,3726.1,3726.0,9.819]
[1762180761305,0.3612,3726.1,3726.0,9.819]
[1762180761604,0.1434,3726.1,3726.0,9.819]
[1762180761803,0.1434,3726.1,3726.0,9.82194045]
[1762180762402,3.569,3726.1,3726.0,9.82194045]
[1762180762604,3.84076888,3726.1,3726.0,9.82194045]
[1762180763007,3.84076888,3726.1,3726.0,0.00294045]
[1762180763205,3.84076888,3726.1,3726.0,9.81794045]
[1762180764005,3.84076888,3726.1,3724.9,0.48332]
[1762180764006,0.1434,3725.4,3724.9,0.48332]
[1762180764210,0.1434,3725.4,3725.2,0.48327]
[1762180764409,0.1434,3725.4,3725.2,3.69107]
[1762180764907,0.1434,3725.4,3725.2,3.2078]
[1762180765211,0.1434,3725.4,3725.2,3.21006764]
[1762180765610,0.1434,3725.4,3725.2,3.69334764]
[1762180765811,0.1434,3725.4,3725.3,9.809]
[1762180766711,0.1434,3726.1,3725.8,0.4832]
[1762180766922,0.1434,3726.1,3725.9,9.81]
[1762180767107,0.1434,3726.1,3725.9,10.29319]
[1762180767502,3.2078,3726.6,3725.9,11.01798]
[1762180767704,3.2078,3726.6,3726.4,0.48313]